bitfinex/quotes_BTCUSD_20260101
["timestamp","ask_amount","ask_price","bid_price","bid_amount"]
[1767301358178,0.01136,88311.0,88301.0,0.0113249]
[1767301358877,0.01136,88311.0,88300.0,0.0571481]
[1767301359636,0.01136,88311.0,88301.0,0.0113249]
[1767301360524,0.01136,88311.0,88300.0,0.0571481]
[1767301360890,0.01136,88311.0,88301.0,0.0113249]
[1767301361090,0.01136,88311.0,88300.0,0.0571481]
[1767301361330,0.01136,88311.0,88301.0,0.0113249]
[1767301362413,0.01136,88311.0,88300.0,0.0571481]
[1767301362639,0.01136,88311.0,88301.0,0.0113249]
[1767301363741,0.01136,88311.0,88300.0,0.0571481]
[1767301363952,0.02444356,88310.0,88301.0,0.0113249]
[1767301364560,0.02444356,88310.0,88300.0,0.01132502]
[1767301366966,0.02444356,88310.0,88299.0,0.01132515]
[1767301368553,0.02444356,88310.0,88300.0,0.01132502]
[1767301381346,0.02444356,88310.0,88299.0,0.01132515]
[1767301381496,0.02444356,88310.0,88300.0,0.01132502]
[1767301381701,0.02444356,88310.0,88299.0,0.01132515]
[1767301381914,0.02444356,88310.0,88300.0,0.01132502]
[1767301382458,0.02444356,88310.0,88301.0,0.0113249]
[1767301382804,0.02444356,88310.0,88302.0,0.01132477]
[1767301383407,0.02444356,88309.0,88301.0,0.0113249]
[1767301385264,0.02444356,88309.0,88302.0,0.01132477]
[1767301385677,0.02444356,88309.0,88301.0,0.0113249]
[1767301387322,0.01136,88310.0,88301.0,0.0113249]
[1767301389096,0.01136,88310.0,88300.0,0.01132502]
[1767301389516,0.01136,88310.0,88301.0,0.0113249]
[1767301390441,0.01136,88310.0,88300.0,0.01132502]
[1767301391846,0.01136,88310.0,88301.0,0.0113249]
[1767301392670,0.01136,88310.0,88300.0,0.01132502]
[1767301395574,0.01136,88310.0,88301.0,0.0113249]
[1767301396745,0.01136,88310.0,88300.0,0.01132502]
[1767301397194,0.01136,88310.0,88301.0,0.0113249]
[1767301397412,0.01136,88310.0,88300.0,0.01132502]
[1767301398658,0.01136,88310.0,88301.0,0.0113249]
[1767301399093,0.01141583,88310.0,88301.0,0.0113249]
[1767301399306,0.02444656,88309.0,88301.0,0.0113249]
[1767301400503,0.02444656,88309.0,88300.0,0.01132502]
[1767301401752,0.02444656,88309.0,88301.0,0.0113249]
[1767301404854,0.02444656,88309.0,88300.0,0.01132502]
[1767301405043,0.01141583,88310.0,88300.0,0.01132502]
[1767301405244,0.02444614,88309.0,88301.0,0.0113249]
[1767301405832,0.02444614,88309.0,88300.0,0.01132502]
[1767301406613,0.02444614,88309.0,88301.0,0.0113249]
[1767301409588,0.02444614,88309.0,88300.0,0.01132502]
[1767301410574,0.02444614,88309.0,88301.0,0.0113249]
[1767301411449,0.02444614,88309.0,88300.0,0.01132502]
[1767301411659,0.02444614,88309.0,88301.0,0.0113249]
[1767301415830,0.02444614,88309.0,88300.0,0.01132502]
[1767301416333,0.02444614,88309.0,88301.0,0.0113249]
[1767301419028,0.02444614,88309.0,88300.0,0.01132502]
[1767301420196,0.01141583,88310.0,88300.0,0.01132502]
[1767301420597,0.01041912,88310.0,88301.0,0.0113249]
[1767301420820,0.0115073,88317.0,88308.0,0.04804195]
[1767301420940,0.0115073,88317.0,88307.0,0.01132413]
[1767301421796,0.0115073,88317.0,88308.0,0.011324]
[1767301422859,0.0115073,88317.0,88307.0,0.02264838]
[1767301423293,0.0115073,88317.0,88307.0,0.01132425]
[1767301423526,0.0115073,88317.0,88308.0,0.011324]
[1767301424247,0.0115073,88317.0,88307.0,0.02264838]
[1767301424790,0.0115073,88317.0,88308.0,0.011324]
[1767301425248,0.0115073,88317.0,88307.0,0.02264838]
[1767301426016,0.01093762,88317.0,88307.0,0.02264838]
[1767301426834,0.00031227,88316.0,88307.0,0.02264838]
[1767301427223,0.00031227,88316.0,88308.0,0.011324]
[1767301434738,0.00031227,88316.0,88309.0,0.01132387]
[1767301434890,0.00031227,88316.0,88308.0,0.011324]
[1767301436059,0.00031227,88316.0,88309.0,0.01132387]
[1767301436192,0.00031227,88316.0,88307.0,0.02264838]
[1767301436902,0.00031227,88316.0,88308.0,0.011324]
[1767301437125,0.00031227,88316.0,88309.0,0.01132387]
[1767301438860,0.00031227,88316.0,88308.0,0.011324]
[1767301439004,0.00031227,88316.0,88309.0,0.01132387]
[1767301440767,0.00031227,88316.0,88310.0,0.01132374]
[1767301441462,0.01093762,88317.0,88308.0,0.011324]
[1767301443273,0.00031227,88316.0,88308.0,0.011324]
[1767301443835,0.00031227,88316.0,88307.0,0.02264838]
[1767301445069,0.00031227,88316.0,88307.0,0.01132425]
[1767301445288,0.00031227,88316.0,88307.0,0.02264838]
[1767301445520,0.00031227,88316.0,88307.0,0.01077525]
[1767301445729,0.00031227,88316.0,88307.0,0.00654364]
[1767301445932,0.00031227,88316.0,88306.0,0.01132425]
[1767301446139,0.00031227,88316.0,88305.0,0.04532516]
[1767301446348,0.00031227,88316.0,88306.0,0.01132425]
[1767301446490,0.00031227,88316.0,88305.0,0.01132438]
[1767301446690,0.00031227,88316.0,88305.0,0.04532516]
[1767301447928,0.00031227,88316.0,88306.0,0.01132425]
[1767301450031,0.00031227,88316.0,88306.0,0.06794496]
[1767301450225,0.00031227,88316.0,88307.0,0.01132413]
[1767301450431,0.00031227,88316.0,88306.0,0.01132425]
[1767301450707,0.04670588,88316.0,88307.0,0.01132413]
[1767301451135,0.04670588,88316.0,88306.0,0.01132425]
[1767301451340,0.04670588,88316.0,88307.0,0.01132413]
[1767301451488,0.04670588,88316.0,88306.0,0.01132425]
[1767301452350,0.04670588,88316.0,88305.0,0.04532516]
[1767301452687,0.04670588,88316.0,88306.0,0.01132425]
[1767301453599,0.04670588,88316.0,88305.0,0.03400078]
[1767301453805,0.04670588,88316.0,88305.0,0.04532516]
[1767301454346,0.04670588,88316.0,88306.0,0.01132425]
[1767301454755,0.04670588,88316.0,88305.0,0.04532516]
[1767301455012,0.04670588,88316.0,88306.0,0.01132425]
[1767301455222,0.04670588,88316.0,88305.0,0.04532516]
[1767301455625,0.04670588,88316.0,88305.0,0.03400078]
[1767301456314,0.04670588,88316.0,88306.0,0.01132425]
[1767301456900,0.04670588,88316.0,88305.0,0.04532516]
[1767301458298,0.04639361,88316.0,88306.0,0.01132425]
[1767301460134,0.04639361,88316.0,88307.0,0.01132413]
[1767301460340,0.00031227,88315.0,88307.0,0.01132413]
[1767301462279,0.00031227,88315.0,88306.0,0.01132425]
[1767301463388,0.00031227,88315.0,88307.0,0.01132413]
[1767301463951,0.00031227,88315.0,88306.0,0.01132425]
[1767301469555,0.00031227,88315.0,88307.0,0.01132413]
[1767301469972,0.00031227,88315.0,88306.0,0.01132425]
[1767301470500,0.00031227,88315.0,88305.0,0.01132438]
[1767301470696,0.00031227,88315.0,88306.0,0.01132425]
[1767301471195,0.04563331,88315.0,88304.0,0.01132438]
[1767301471800,0.04563331,88315.0,88304.0,0.02264889]
[1767301472364,0.04563331,88315.0,88305.0,0.01132438]
[1767301472586,0.04563331,88315.0,88306.0,0.01132425]
[1767301472968,0.04563331,88315.0,88305.0,0.01132438]
[1767301473263,0.04563331,88315.0,88306.0,0.01132425]
[1767301473705,0.04563331,88315.0,88305.0,0.01132438]
[1767301473903,0.04563331,88315.0,88306.0,0.01132425]
[1767301474999,0.04563331,88315.0,88307.0,0.01132413]
[1767301475190,0.04563331,88315.0,88306.0,0.01132425]
[1767301475475,0.04532104,88315.0,88306.0,0.01132425]
[1767301477267,0.00031227,88314.0,88306.0,0.01132425]
[1767301479609,0.00031227,88314.0,88305.0,0.01132438]
[1767301480151,0.00031227,88314.0,88306.0,0.01132425]
[1767301480356,0.00031227,88314.0,88305.0,0.01132438]
[1767301480556,0.00031227,88314.0,88306.0,0.01132425]
[1767301480969,0.00031227,88314.0,88304.0,0.02264889]
[1767301481294,0.00031227,88314.0,88305.0,0.01132438]
[1767301481725,0.00031227,88314.0,88306.0,0.01132425]
[1767301481883,0.04532104,88313.0,88306.0,0.01132425]
[1767301484114,0.04532104,88313.0,88304.0,0.02264889]
[1767301484333,0.04532104,88313.0,88305.0,0.01132438]
[1767301485256,0.00031227,88312.0,88305.0,0.01132438]
[1767301486828,0.00031227,88312.0,88304.0,0.02264889]
[1767301487029,0.00031227,88312.0,88305.0,0.01132438]
[1767301487874,0.00031227,88312.0,88304.0,0.01132438]
[1767301488126,0.00031227,88312.0,88304.0,0.02264889]
[1767301488861,0.00031227,88312.0,88305.0,0.01132438]
[1767301489089,0.00031227,88312.0,88304.0,0.02264889]
[1767301489470,0.00031227,88312.0,88305.0,0.01132438]
[1767301489961,0.00031227,88312.0,88304.0,0.0792713]
[1767301489962,0.00031227,88312.0,88304.0,0.02264889]
[1767301490687,0.00031227,88312.0,88305.0,0.01132438]
[1767301492725,0.00031227,88312.0,88306.0,0.01132425]
[1767301493663,0.00031227,88312.0,88305.0,0.01132438]
[1767301494577,0.00031227,88312.0,88304.0,0.02264889]
[1767301494789,0.00031227,88312.0,88305.0,0.01132438]
[1767301494974,0.00031227,88312.0,88306.0,0.01132425]
[1767301495169,0.00031227,88312.0,88305.0,0.01132438]
[1767301495395,0.00031227,88312.0,88304.0,0.02264889]
[1767301495798,0.00031227,88312.0,88306.0,0.01132425]
[1767301496004,0.00031227,88312.0,88304.0,0.02264889]
[1767301496183,0.00031227,88312.0,88306.0,0.01132425]
[1767301496388,0.00031227,88312.0,88305.0,0.01132438]
[1767301498525,0.00031227,88312.0,88306.0,0.01132425]
[1767301499321,0.00031227,88312.0,88304.0,0.02264889]
[1767301499518,0.00031227,88312.0,88305.0,0.01132438]
[1767301500200,0.00031227,88312.0,88306.0,0.01132425]
[1767301500413,0.04532104,88313.0,88306.0,0.01132425]
[1767301502002,0.04532104,88313.0,88304.0,0.02264889]
[1767301502140,0.00031227,88312.0,88304.0,0.02264889]
[1767301502350,0.04537666,88311.0,88304.0,0.01132438]
[1767301502722,0.04592666,88304.0,88296.0,0.01183616]
[1767301502919,0.04537666,88304.0,88297.0,0.01132541]
[1767301503261,0.04537666,88304.0,88296.0,0.0458403]
[1767301503508,0.04537666,88304.0,88297.0,0.01132541]
[1767301503847,0.04537666,88304.0,88296.0,0.0458403]
[1767301504051,0.04537666,88304.0,88297.0,0.01132541]
[1767301504382,0.04537666,88304.0,88298.0,0.01132528]
[1767301505706,0.00031227,88303.0,88298.0,0.01132528]
[1767301505909,0.00031227,88303.0,88297.0,0.01132541]
[1767301506138,0.00031227,88303.0,88298.0,0.01132528]
[1767301507272,0.00031227,88303.0,88297.0,0.06795197]
[1767301507482,0.00031227,88303.0,88297.0,0.01132541]
[1767301508957,0.00031227,88303.0,88298.0,0.01132528]
[1767301509179,0.04510893,88304.0,88298.0,0.01132528]
[1767301509508,0.04510893,88304.0,88297.0,0.01132541]
[1767301510336,0.04510893,88304.0,88298.0,0.01132528]
[1767301511374,0.04510893,88304.0,88297.0,0.01132541]
[1767301511753,0.04510893,88304.0,88296.0,0.0458403]
[1767301512118,0.04510893,88304.0,88297.0,0.01132541]
[1767301512994,0.04510893,88304.0,88296.0,0.0458403]
[1767301513324,0.04510893,88304.0,88296.0,0.04579767]
[1767301513949,0.04510893,88304.0,88297.0,0.01132541]
[1767301516484,0.04592666,88297.0,88295.0,0.0001473]
[1767301516823,0.04592666,88297.0,88286.0,0.0001473]
[1767301517044,0.04537666,88297.0,88286.0,0.0001473]
[1767301519852,0.04537666,88297.0,88286.0,0.01147412]
[1767301520139,0.04537666,88297.0,88286.0,0.0001473]
[1767301520560,0.04537666,88297.0,88286.0,0.01147412]
[1767301522484,0.04537666,88297.0,88287.0,0.01132669]
[1767301523109,0.04537666,88297.0,88287.0,0.01138252]
[1767301523265,0.04537666,88297.0,88287.0,5.583e-05]
[1767301523687,0.04537666,88297.0,88287.0,0.01138252]
[1767301525320,0.04537666,88297.0,88287.0,5.583e-05]
[1767301527522,0.04537666,88297.0,88287.0,1.321e-05]
[1767301528171,0.04537666,88297.0,88283.0,0.06999605]
[1767301528494,0.04537666,88297.0,88284.0,0.01132708]
[1767301529281,0.04537666,88297.0,88283.0,0.06999605]
[1767301529686,0.04537666,88297.0,88285.0,0.01132695]
[1767301530090,0.04537666,88297.0,88284.0,0.01132708]
[1767301530292,0.04537666,88297.0,88285.0,0.01132695]
[1767301530462,0.04537666,88297.0,88284.0,0.01132708]
[1767301530661,0.04537666,88297.0,88283.0,0.06999605]
[1767301530864,0.04537666,88297.0,88284.0,0.01132708]
[1767301531507,0.04537666,88297.0,88283.0,0.05866885]
[1767301532269,0.04537666,88297.0,88284.0,0.01132708]
[1767301532581,0.04537666,88297.0,88283.0,0.06999605]
[1767301532780,0.04537666,88297.0,88285.0,0.01132695]
[1767301533700,0.04537666,88297.0,88286.0,0.01132682]
[1767301533901,0.04537666,88297.0,88285.0,0.01132695]
[1767301534104,0.04537666,88297.0,88284.0,0.01132708]
[1767301534720,0.04537666,88297.0,88285.0,0.01132695]
[1767301535053,0.04537666,88297.0,88284.0,0.01132708]
[1767301536769,0.04537666,88297.0,88283.0,0.06999605]
[1767301537972,0.04537666,88297.0,88284.0,0.01132708]
[1767301538472,0.04537666,88297.0,88285.0,0.01132695]
[1767301539539,0.44104734,88300.0,88285.0,0.01132695]
[1767301539741,0.01136,88301.0,88288.0,0.01132656]
[1767301539931,0.44104734,88300.0,88287.0,0.01132669]
[1767301540873,0.44104734,88300.0,88288.0,0.01132695]
[1767301541687,0.01136,88301.0,88288.0,0.01132695]
[1767301541907,0.44104734,88300.0,88288.0,0.01132695]
[1767301546225,0.02446145,88299.0,88288.0,0.01132695]
[1767301548358,0.44104734,88300.0,88288.0,0.01132695]
[1767301548668,0.02446178,88299.0,88288.0,0.01132695]
[1767301549217,0.44104734,88300.0,88288.0,0.01132695]
[1767301549459,0.02446181,88299.0,88288.0,0.01132695]
[1767301563523,0.02446181,88299.0,88292.0,0.0584809]
[1767301563721,0.0001473,88308.0,88296.0,0.04715485]
[1767301563895,0.0219775,88307.0,88298.0,0.04715485]
[1767301564079,0.01136,88307.0,88298.0,0.04715485]
[1767301564579,0.0001473,88308.0,88298.0,0.04715485]
[1767301564782,0.01136,88307.0,88298.0,0.04715485]
[1767301565574,0.01136,88307.0,88298.0,0.03949346]
[1767301574534,0.01136,88307.0,88298.0,0.05081874]
[1767301574662,0.01136,88307.0,88299.0,0.01132515]
[1767301574873,0.01136,88307.0,88300.0,0.01132502]
[1767301575857,0.0115073,88308.0,88300.0,0.01132502]
[1767301577411,0.0001473,88308.0,88300.0,0.01132502]
[1767301577612,0.0115073,88308.0,88301.0,0.0113249]
[1767301578531,0.0115073,88308.0,88300.0,0.01132502]
[1767301578920,0.0115073,88308.0,88301.0,0.0113249]
[1767301579963,0.0115073,88308.0,88299.0,0.05848]
[1767301580737,0.0115073,88308.0,88300.0,0.01132502]
[1767301581895,0.0001473,88308.0,88301.0,0.0113249]
[1767301582107,0.0001473,88308.0,88301.0,0.04715485]
[1767301582300,0.0001473,88308.0,88301.0,0.05847975]
[1767301583278,0.0001473,88308.0,88302.0,0.01132477]
[1767301583621,0.0001473,88308.0,88301.0,0.05847975]
[1767301584267,0.0001473,88308.0,88302.0,0.01132477]
[1767301585244,0.0001473,88308.0,88301.0,0.05847975]
[1767301586033,0.0001473,88308.0,88302.0,0.01132477]
[1767301587385,0.0001473,88308.0,88301.0,0.05847975]
[1767301587935,0.0001473,88308.0,88302.0,0.01132477]
[1767301590356,0.000549,88302.0,88299.0,0.01132515]
[1767301590562,0.000549,88302.0,88299.0,0.05764328]
[1767301590861,0.0001473,88308.0,88299.0,0.05764328]
[1767301591281,0.0001473,88308.0,88299.0,0.04631813]
[1767301591958,0.0001473,88308.0,88300.0,0.01132502]
[1767301594891,0.0001473,88308.0,88299.0,0.05764328]
[1767301595626,0.0001473,88308.0,88300.0,0.01132502]
[1767301596324,0.02445244,88307.0,88299.0,0.05764328]
[1767301596533,0.02445244,88307.0,88300.0,0.01132502]
[1767301597993,0.02445244,88307.0,88299.0,0.05764328]
[1767301598310,0.02445244,88307.0,88300.0,0.01132502]
[1767301598715,0.02445244,88307.0,88299.0,0.05764328]
[1767301599941,0.02445244,88307.0,88300.0,0.01132502]
[1767301600251,0.02445244,88307.0,88299.0,0.05764328]
[1767301601988,0.02445244,88307.0,88300.0,0.01132502]
[1767301602186,0.02445244,88307.0,88299.0,0.01132515]
[1767301604101,0.02445244,88307.0,88301.0,0.0113249]
[1767301604711,0.02445244,88307.0,88300.0,0.01132502]
[1767301604928,0.02445244,88307.0,88301.0,0.0113249]
[1767301605139,0.02445244,88307.0,88302.0,0.01132477]
[1767301606399,0.02445244,88307.0,88301.0,0.0113249]
[1767301606967,0.02445244,88307.0,88302.0,0.01132477]
[1767301607382,0.02445244,88307.0,88301.0,0.0113249]
[1767301608056,0.02445244,88307.0,88302.0,0.01132477]
[1767301609926,0.02445244,88307.0,88301.0,0.0113249]
[1767301611797,0.02445244,88307.0,88300.0,0.01132502]
[1767301612198,0.02445244,88307.0,88301.0,0.0113249]
[1767301615868,0.02445244,88307.0,88300.0,0.01132502]
[1767301616936,0.02445244,88307.0,88301.0,0.0113249]
[1767301617114,0.02445244,88307.0,88300.0,0.01132502]
[1767301618297,0.02445244,88307.0,88301.0,0.0113249]
[1767301618719,0.02445244,88307.0,88300.0,0.01132502]
[1767301618919,0.02445244,88307.0,88301.0,0.0113249]
[1767301621036,0.02445244,88307.0,88300.0,0.01132502]
[1767301621254,0.02445244,88307.0,88301.0,0.0113249]
[1767301621878,0.000549,88301.0,88299.0,0.01132515]
[1767301622495,0.0001473,88308.0,88300.0,0.01132502]
[1767301622702,0.02447039,88307.0,88300.0,0.01132502]
[1767301622912,0.02447039,88307.0,88297.0,0.02265043]
[1767301623119,0.02447039,88307.0,88300.0,0.01132502]
[1767301623957,0.02447039,88307.0,88301.0,0.0113249]
[1767301624154,0.0001473,88308.0,88301.0,0.0113249]
[1767301624507,0.0001473,88308.0,88300.0,0.01132502]
[1767301624715,0.0001473,88308.0,88301.0,0.0113249]
[1767301624933,0.0001473,88308.0,88300.0,0.01132502]
[1767301625138,0.0001473,88308.0,88298.0,0.01132528]
[1767301625339,0.02446804,88307.0,88299.0,0.01132515]
[1767301625860,0.02446804,88307.0,88298.0,0.01132528]
[1767301626058,0.02446804,88307.0,88298.0,0.03579332]
[1767301626411,0.02446804,88307.0,88299.0,0.01132515]
[1767301628765,0.02446804,88307.0,88298.0,0.03579332]
[1767301629722,0.02446804,88307.0,88299.0,0.01132515]
[1767301629928,0.02446804,88307.0,88298.0,0.03579332]
[1767301630330,0.02446804,88307.0,88299.0,0.01132515]
[1767301630757,0.02446804,88307.0,88300.0,0.01132502]
[1767301632156,0.02446804,88307.0,88298.0,0.03579332]
[1767301632356,0.02446804,88307.0,88299.0,0.01132515]
[1767301632715,0.02446804,88307.0,88298.0,0.03579332]
[1767301632838,0.0001473,88308.0,88298.0,0.03579332]
[1767301633035,0.02446784,88307.0,88299.0,0.01132515]
[1767301635407,0.02446784,88307.0,88300.0,0.01132502]
[1767301636184,0.0001473,88308.0,88300.0,0.01132502]
[1767301636770,0.0001473,88308.0,88301.0,0.0113249]
[1767301637009,0.000549,88301.0,88299.0,0.01132515]
[1767301637646,0.0001473,88308.0,88300.0,0.01132502]
[1767301638341,0.0001473,88308.0,88299.0,0.02268515]
[1767301638342,0.0001473,88308.0,88301.0,0.0113249]
[1767301639667,0.0001473,88308.0,88300.0,0.01132502]
[1767301640272,0.0001473,88308.0,88301.0,0.0113249]
[1767301641643,0.0001473,88308.0,88300.0,0.01132502]
[1767301641848,0.0001473,88308.0,88301.0,0.0113249]
[1767301642709,0.0001473,88308.0,88300.0,0.01132502]
[1767301643068,0.0001473,88308.0,88299.0,0.01132515]
[1767301644076,0.0001473,88308.0,88300.0,0.01132502]
[1767301644283,0.0001473,88308.0,88299.0,0.01132515]
[1767301644510,0.0001473,88308.0,88300.0,0.01132502]
[1767301646303,0.0001473,88308.0,88301.0,0.0113249]
[1767301648051,0.0001473,88308.0,88300.0,0.01132502]
[1767301649122,0.0001473,88308.0,88301.0,0.0113249]
[1767301649571,0.0001473,88308.0,88302.0,0.01132477]
[1767301650006,0.0001473,88308.0,88301.0,0.0113249]
[1767301651117,0.0001473,88308.0,88302.0,0.01132477]
[1767301651269,0.0001473,88308.0,88301.0,0.0113249]
[1767301653064,0.0001473,88308.0,88302.0,0.01132477]
[1767301654428,0.0001473,88308.0,88301.0,0.0113249]
[1767301655910,0.0001473,88308.0,88300.0,0.01132502]
[1767301656393,0.0001473,88308.0,88301.0,0.0113249]
[1767301657337,0.0001473,88308.0,88300.0,0.01132502]
[1767301657758,0.0001473,88308.0,88302.0,0.01132477]
[1767301658210,0.03070497,88317.0,88306.0,0.01132425]
[1767301658211,0.01136,88316.0,88306.0,0.01132425]
[1767301658512,0.02444705,88315.0,88309.0,0.01132387]
[1767301658709,0.047898,88317.0,88309.0,0.01132387]
[1767301658886,0.02444817,88316.0,88309.0,0.01132387]
[1767301659091,0.00142452,88310.0,88309.0,0.01132387]
[1767301661235,0.0001473,88326.0,88309.0,0.01132387]
[1767301661236,0.047898,88326.0,88317.0,0.01132284]
[1767301661794,0.0001473,88326.0,88318.0,0.01132272]
[1767301662056,0.0001473,88326.0,88317.0,0.01132284]
[1767301662809,0.0001473,88326.0,88318.0,0.01132272]
[1767301663017,0.0001473,88326.0,88317.0,0.01132284]
[1767301663214,0.0001473,88326.0,88318.0,0.01132272]
[1767301663436,0.000549,88318.0,88317.0,0.01132284]
[1767301663638,0.0001473,88326.0,88317.0,0.01132284]
[1767301663840,0.0001473,88326.0,88318.0,0.01132272]
[1767301665823,0.0001473,88326.0,88319.0,0.01132259]
[1767301666981,0.0001473,88326.0,88321.0,0.01132233]
[1767301667549,0.0001473,88326.0,88319.0,0.01132259]
[1767301667550,0.0001473,88326.0,88320.0,0.01132246]
[1767301668093,0.0001473,88326.0,88321.0,0.01132233]
[1767301668373,0.000549,88321.0,88319.0,0.01132259]
[1767301668813,0.0001473,88326.0,88320.0,0.01132246]
[1767301670806,0.0001473,88326.0,88321.0,0.01132233]
[1767301671718,0.0001473,88326.0,88320.0,0.01132246]
[1767301672382,0.0001473,88326.0,88321.0,0.01132233]
[1767301672778,0.0001473,88326.0,88319.0,0.01132259]
[1767301672986,0.0001473,88326.0,88318.0,0.01132272]
[1767301673559,0.0001473,88326.0,88319.0,0.01132259]
[1767301674085,0.0001473,88326.0,88320.0,0.01132246]
[1767301674669,0.0001473,88326.0,88319.0,0.01132259]
[1767301676797,0.000549,88319.0,88318.0,0.01132272]
[1767301676974,0.0001473,88326.0,88319.0,0.01132259]
[1767301677391,0.0001473,88326.0,88320.0,0.01132246]
[1767301677908,0.0001473,88326.0,88321.0,0.01132233]
[1767301679092,0.0001473,88326.0,88322.0,0.0113222]
[1767301679315,0.0001473,88326.0,88320.0,0.01132246]
[1767301679702,0.0001473,88326.0,88322.0,0.0113222]
[1767301679911,0.0001473,88326.0,88321.0,0.01132233]
[1767301680761,0.0001473,88326.0,88321.0,0.0453445]
[1767301681329,0.0001473,88326.0,88323.0,0.05666657]
[1767301681536,0.0001473,88326.0,88323.0,0.06793236]
[1767301681739,0.0001473,88326.0,88325.0,0.05660911]
[1767301682168,0.0001473,88326.0,88325.0,0.10195361]
[1767301683935,0.04715478,88342.0,88335.0,0.01132054]
[1767301684085,0.05851478,88348.0,88333.0,0.01132079]
[1767301684288,0.05851478,88348.0,88338.0,0.4409584]
[1767301684481,0.05851478,88348.0,88338.0,0.4398594]
[1767301684689,0.05851478,88348.0,88332.0,0.01132092]
[1767301684893,0.05851478,88348.0,88330.0,0.4409584]
[1767301685299,0.04715478,88347.0,88330.0,0.4409584]
[1767301685514,0.04715478,88345.0,88329.0,0.01136]
[1767301685700,0.04715478,88339.0,88329.0,0.01136]
[1767301686844,0.01132028,88337.0,88329.0,0.01136]
[1767301687154,0.04715478,88336.0,88329.0,0.01136]
[1767301687279,0.04715478,88336.0,88329.0,0.00443771]
[1767301689412,0.04715478,88336.0,88329.0,0.00278802]
[1767301695216,0.04715478,88342.0,88326.0,0.03399173]
[1767301695392,0.05847442,88342.0,88326.0,0.04535173]
[1767301697237,0.04715478,88342.0,88326.0,0.04535173]
[1767301697908,0.05847442,88342.0,88326.0,0.04535173]
[1767301698663,0.01131977,88341.0,88326.0,0.04535173]
[1767301698861,0.04715478,88340.0,88326.0,0.04535173]
[1767301699064,0.05847468,88340.0,88326.0,0.04535173]
[1767301699615,0.04715478,88339.0,88326.0,0.04535173]
[1767301699946,0.0584748,88339.0,88326.0,0.04535173]
[1767301700374,0.04715478,88339.0,88326.0,0.04535173]
[1767301701461,0.04715478,88339.0,88326.0,0.01136]
[1767301704295,0.04666829,88340.0,88326.0,0.01136]
[1767301704451,0.04666829,88337.0,88326.0,0.01136]
[1767301705022,0.04666829,88337.0,88326.0,0.01090812]
[1767301705222,0.0002,88336.0,88326.0,0.01090812]
[1767301711707,0.01132,88340.0,88329.0,0.06096416]
[1767301711911,0.01132,88340.0,88329.0,0.04964285]
[1767301712113,0.01132,88345.0,88330.0,0.44068588]
[1767301712350,0.03505831,88344.0,88330.0,0.44068588]
[1767301712566,0.02444618,88343.0,88330.0,0.44068588]
[1767301712773,0.02444618,88342.0,88329.0,0.04964285]
[1767301712923,0.02444618,88341.0,88329.0,0.04964285]
[1767301713131,0.02263925,88345.0,88329.0,0.04964285]
[1767301713329,0.03506498,88344.0,88329.0,0.04964285]
[1767301713534,0.03506498,88343.0,88329.0,0.04964285]
[1767301713752,0.02445037,88342.0,88329.0,0.04964285]
[1767301713959,0.02445037,88341.0,88329.0,0.04964285]
[1767301714200,0.02445037,88340.0,88329.0,0.04964285]
[1767301714335,0.02263925,88345.0,88329.0,0.04964285]
[1767301714552,0.03507127,88344.0,88329.0,0.04964285]
[1767301714757,0.03507127,88343.0,88329.0,0.04964285]
[1767301714972,0.02445647,88342.0,88329.0,0.04964285]
[1767301715201,0.02445647,88341.0,88329.0,0.04964285]
[1767301715371,0.02445647,88340.0,88329.0,0.04964285]
[1767301715577,0.06930754,88345.0,88329.0,0.04964285]
[1767301715761,0.03507401,88344.0,88329.0,0.04964285]
[1767301715959,0.03507401,88343.0,88329.0,0.04964285]
[1767301716177,0.02445837,88342.0,88329.0,0.04964285]
[1767301716418,0.02445837,88341.0,88329.0,0.04964285]
[1767301716576,0.02445837,88340.0,88329.0,0.04964285]
[1767301716774,0.06930754,88345.0,88329.0,0.04964285]
[1767301717113,0.03507404,88344.0,88329.0,0.04964285]
[1767301717256,0.03507404,88343.0,88329.0,0.04964285]
[1767301717496,0.0244584,88342.0,88329.0,0.04964285]
[1767301717716,0.0244584,88341.0,88329.0,0.04964285]
[1767301717918,0.0244584,88340.0,88329.0,0.04964285]
[1767301718222,0.04666829,88344.0,88329.0,0.04964285]
[1767301718549,0.03507397,88343.0,88329.0,0.04964285]
[1767301718686,0.02445834,88342.0,88329.0,0.04964285]
[1767301718887,0.02445834,88341.0,88329.0,0.04964285]
[1767301719099,0.02445834,88340.0,88329.0,0.04964285]
[1767301719434,0.01132,88346.0,88329.0,0.05699503]
[1767301719669,0.03507447,88345.0,88329.0,0.05699503]
[1767301719822,0.03507447,88344.0,88329.0,0.05699503]
[1767301720003,0.03507447,88343.0,88329.0,0.05699503]
[1767301720204,0.02445869,88342.0,88329.0,0.04567372]
[1767301720433,0.02445869,88341.0,88329.0,0.03801438]
[1767301720589,0.02445869,88340.0,88329.0,0.03801438]
[1767301720790,0.02263913,88346.0,88329.0,0.03801438]
[1767301720993,0.03507448,88345.0,88329.0,0.04933569]
[1767301721187,0.03053755,88349.0,88330.0,0.04964285]
[1767301721188,0.0244587,88344.0,88330.0,0.04964285]
[1767301721401,0.07112699,88343.0,88330.0,0.44068588]
[1767301721606,0.0244587,88342.0,88330.0,0.44068588]
[1767301722445,0.0244587,88342.0,88328.0,0.01132143]
[1767301723656,0.0244587,88342.0,88330.0,0.44068588]
[1767301724422,0.04666829,88343.0,88330.0,0.44068588]
[1767301726667,0.04666829,88343.0,88330.0,0.45200706]
[1767301727506,0.04666829,88343.0,88330.0,0.44068588]
[1767301727907,0.04666829,88343.0,88330.0,0.45200706]
[1767301728738,0.04666829,88349.0,88332.0,0.01132092]
[1767301728971,0.05798829,88347.0,88330.0,0.45200706]
[1767301729089,0.03506567,88346.0,88330.0,0.45200706]
[1767301729444,0.02445248,88345.0,88330.0,0.45200706]
[1767301729658,0.02445248,88344.0,88331.0,0.01132105]
[1767301729873,0.04666829,88346.0,88332.0,0.01132092]
[1767301730026,0.02445287,88345.0,88332.0,0.01132092]
[1767301730938,0.02445287,88345.0,88333.0,0.01132]
[1767301731973,0.02445287,88345.0,88333.0,0.02264079]
[1767301732179,0.08740682,88374.0,88336.0,0.06096326]
[1767301732180,0.04681559,88352.0,88336.0,0.06096326]
[1767301732355,0.02445103,88351.0,88340.0,0.0113199]
[1767301732594,0.0001473,88352.0,88342.0,0.01131964]
[1767301732777,0.0001473,88352.0,88342.0,0.01074981]
[1767301732976,0.0001473,88352.0,88343.0,0.01131951]
[1767301733144,0.0001473,88352.0,88342.0,0.01074981]
[1767301733349,0.0001473,88352.0,88343.0,0.01131951]
[1767301733550,0.0001473,88352.0,88342.0,0.01074981]
[1767301733788,0.0001473,88352.0,88343.0,0.01131951]
[1767301734269,0.0001473,88352.0,88344.0,0.01131938]
[1767301734473,0.0001473,88352.0,88343.0,0.01131951]
[1767301734669,0.0001473,88352.0,88344.0,0.01131938]
[1767301735662,0.0001473,88352.0,88345.0,0.01131925]
[1767301735872,3e-07,88352.0,88346.0,0.01131913]
[1767301736067,3e-07,88352.0,88345.0,0.01131925]